Cogmind - Beta 11 *** ADVENTURER MODE // 2022.03.19 @ 17:46:48 Player: Harper357 Result: Destroyed by D-53 Grenadier with Mini Grenade Launcher Performance ------------- Evolutions (0) 0 Regions Visited (2) 400 Robots Destroyed (6) 30 Value Destroyed (175) 175 Prototype IDs (0) 0 Alien Tech Used (0) 0 Bonus (0) 0 TOTAL SCORE: 605 Bonus ------- None Cogmind --------- Core Integrity 0/250 Matter 292/300 Energy 100/100 System Corruption 0% Temperature Cool (0) Movement Core (200) Ox3 Location -10/Mines Parts ------- > --- POWER (1) -------- (None) > --- PROPULSION (2) --- (None) > --- UTILITY (2) ------ Medium Storage Unit > --- WEAPON (2) ------- (None) > --- INVENTORY (10) --- Aluminum Leg Compact Wheel Small Storage Unit Small Storage Unit Sensor Array Medium Laser Peak State ------------ > --- POWER ------------ Ion Engine > --- PROPULSION ------- Light Treads > --- UTILITY ---------- Small Storage Unit Sensor Array > --- WEAPON ----------- EM Pulse Gun Medium Laser > --- INVENTORY -------- Aluminum Leg Small Storage Unit [Rating: 6] Favorites ----------- Power Ion Engine Engine Ion Engine Propulsion Light Treads Treads Light Treads Utility Small Storage Unit Device Sensor Array Storage Small Storage Unit Protection Light Armor Plating Weapon Medium Laser Energy Gun Medium Laser Ballistic Cannon Light Cannon Special Weapon Mining Laser Build | -11 -10 -10 ------- Run | Scr Mat Min Slots Evolved . | . . . Power . | . . . Propulsion . | . . . Utility . | . . . Weapon . | . . . Parts Attached 12 | 6 5 1 Power 1 | . 1 . Engine 1 | . 1 . Core . | . . . Reactor . | . . . Propulsion 1 | 1 . . Treads 1 | 1 . . Leg . | . . . Wheel . | . . . Hover . | . . . Flight . | . . . Utility 4 | 1 3 . Device 1 | . 1 . Storage 2 | 1 1 . Processor . | . . . Hackware . | . . . Protection 1 | . 1 . Artifact . | . . . Weapon 6 | 4 1 1 Energy Gun 4 | 3 1 . Energy Cannon . | . . . Ballistic Gun . | . . . Ballistic Cannon 1 | . . 1 Launcher . | . . . Special Weapon 1 | 1 . . Impact Weapon . | . . . Slashing Weapon . | . . . Piercing Weapon . | . . . Special Melee Weapon . | . . . Unidentified Prototypes . | . . . Parts Lost 5 | . . 5 Power 1 | . . 1 Propulsion 1 | . . 1 Utility 1 | . . 1 Weapon 2 | . . 2 Highest Loss Streak 5 | . . 5 To Critical Strikes . | . . . Average Slot Usage (%) 76 | . 75 81 Engine 8 | . 6 13 Treads 13 | . 14 13 Device 5 | . 7 . Storage 14 | . 14 14 Protection 7 | . 5 13 Energy Gun 20 | . 22 15 Ballistic Cannon 2 | . . 10 Special Weapon 4 | . 5 . Naked Turns . | . . . Heaviest Build 23 | 9 22 23 Greatest Support 20 | 20 20 20 Greatest Overweight (x) 4 | 2 1 4 Average Overweight (x) . | 1 . 1 Largest Inventory Capacity 10 | 8 10 10 Average Capacity 8 | 7 8 10 Most Carried 6 | 3 5 6 Average Carried 3 | . 3 5 Final Capacity 10 | 8 10 10 Final Carried 6 | 2 4 6 Class Distribution -------------------- 100% | Mutant Dominant Class ---------------- Mutant | -10/Materials Mutant | -10/Mines Resources | -11 -10 -10 ----------- Run | Scr Mat Min Matter Collected 331 | 260 50 21 Remotely . | . . . Salvage Created 324 | 113 176 35 Parts 13 | 7 6 . Haulers Intercepted . | . . . Recyclers Shooed . | . . . Parts Field Recycled . | . . . Retrieved Matter . | . . . Parts Self-Destructed . | . . . Prevented . | . . . Kills | -11 -10 -10 ------- Run | Scr Mat Min Combat Hostiles Destroyed 4 | . 4 . Guns 3 | . 3 . Classes Destroyed 3 | 2 1 . Tunneler 1 | 1 . . Recycler 1 | 1 . . Grunt 4 | . 4 . Best Kill Streak 2 | 2 2 . Combat Bots Only 2 | . 2 . Max Kills in Single Turn 1 | 1 1 . Gunslinging . | . . . Exploded . | . . . Melee . | . . . Uniques/NPCs Destroyed . | . . . Combat | -11 -10 -10 -------- Run | Scr Mat Min Damage Taken 850 | . 197 653 Core 257 | . 22 235 Absorbed by Shields . | . . . Core Remaining (%) 100 | 100 . . Volleys Fired 45 | 7 27 11 Largest 2 | 1 2 1 Hottest 90 | 50 90 35 Shots Fired 48 | 7 30 11 Gun 37 | 7 30 . Cannon 11 | . . 11 Launcher . | . . . Special . | . . . Kinetic 11 | . . 11 Thermal 31 | 4 27 . Explosive . | . . . Electromagnetic 6 | 3 3 . Robot Hit Streak 12 | 4 7 12 Robot Miss Streak 2 | 1 2 1 Penetration Max . | . . . Secondary Targets . | . . . Shots Hit Robots 38 | 5 23 10 Core Hits 19 | 3 9 7 Critical Kills . | . . . Critical Parts Destroyed . | . . . Critical Strikes 3 | . 3 . Burn 3 | . 3 . Melee Attacks . | . . . Impact . | . . . Slashing . | . . . Piercing . | . . . Sneak Attacks . | . . . Combat Hostiles . | . . . Follow-up Attacks . | . . . Damage Inflicted 534 | 65 301 168 Guns 366 | 65 301 . Cannons 168 | . . 168 Explosions . | . . . Melee . | . . . Ramming . | . . . Kinetic 168 | . . 168 Thermal 325 | 50 275 . Explosive . | . . . Electromagnetic 41 | 15 26 . Impact . | . . . Slashing . | . . . Piercing . | . . . Highest Corruption . | . . . Average Corruption . | . . . Corruption Purged . | . . . Corruption Blocked . | . . . Overload Shots . | . . . Overflow Damage . | . . . Projectiles . | . . . Explosions . | . . . Melee . | . . . Knockbacks 3 | . . 3 Impact . | . . . Kinetic 3 | . . 3 Secondary . | . . . Self-Inflicted Damage . | . . . Shots . | . . . Rammed . | . . . Targets Rammed . | . . . Kicked . | . . . Crushed . | . . . Highest Temperature 126 | . 126 . Average Temperature 62 | . 62 . Received Heat Transfer 165 | . 165 . Siege Activations . | . . . Robots Corrupted . | . . . Combat Hostiles . | . . . Parts Fried . | . . . Impact Corruptions . | . . . Robots Melted 1 | . 1 . Combat Hostiles 1 | . 1 . Parts Melted 2 | . 2 . Heat Transferred 1184 | 148 1036 . Parts Sabotaged . | . . . Parts Stolen . | . . . Parts Stripped . | . . . Power Chain Reactions . | . . . Missiles Intercepted . | . . . Alert | -11 -10 -10 ------- Run | Scr Mat Min Peak Influence 131 | 10 131 18 Initial 5 | . 5 3 Average 29 | 4 42 3 Maximum Alert Level . | . . . Low Security (%) 100 | 100 100 100 Level 1 . | . . . Level 2 . | . . . Level 3 . | . . . Level 4 . | . . . Level 5 . | . . . High Security . | . . . Max Security . | . . . Squads Dispatched 1 | . 1 . Investigation 1 | . 1 . Extermination . | . . . Reinforcement . | . . . Assault . | . . . Garrison . | . . . Intercept . | . . . Searches Triggered . | . . . Construction Impeded . | . . . Haulers Reinforced . | . . . Active Scanning Responses . | . . . Cargo Convoy Interrupts . | . . . Stealth | -11 -10 -10 --------- Run | Scr Mat Min Distress Signals . | . . . Communications Jammed . | . . . Distress Signals . | . . . Times Spotted 8 | . 6 2 Peak Tracking Total 2 | . 2 2 Tactical Retreats . | . . . Traps | -11 -10 -10 ------- Run | Scr Mat Min Traps Triggered . | . . . Indirectly . | . . . Trap Hack Attempts . | . . . Triggered . | . . . Disarmed . | . . . Reprogrammed . | . . . Reused . | . . . Traps Extracted . | . . . Installed . | . . . Triggered . | . . . Machines | -11 -10 -10 ---------- Run | Scr Mat Min Machines Disabled . | . . . Max in Single Turn . | . . . Machines Sabotaged . | . . . Garrisons Compromised . | . . . Overloaded Fab Kills . | . . . Hacking | -11 -10 -10 --------- Run | Scr Mat Min Machines Accessed 3 | . 3 . Terminals 1 | . 1 . Fabricators . | . . . Repair Stations 1 | . 1 . Recycling Units 1 | . 1 . Scanalyzers . | . . . Garrison Access . | . . . Total Hacks 9 | . 9 . Successful 3 | . 3 . Failed 6 | . 6 . Catastrophic . | . . . Database Lockouts . | . . . Manual . | . . . Terminals 2 | . 2 . Fabricators . | . . . Repair Stations 4 | . 4 . Recycling Units 3 | . 3 . Scanalyzers . | . . . Garrison Access . | . . . Terminal Hacks . | . . . Fabricator Hacks . | . . . Repair Station Hacks 2 | . 2 . Scan Component 2 | . 2 . Recycling Unit Hacks 1 | . 1 . Recycle Component 1 | . 1 . Scanalyzer . | . . . Garrison Access Hacks . | . . . Unauthorized Hacks . | . . . Terminals . | . . . Fabricators . | . . . Repair Stations . | . . . Recycling Units . | . . . Scanalyzers . | . . . Garrison Access . | . . . Data Cores Recovered . | . . . Used . | . . . Hacking Detections 3 | . 3 . Full Trace Events 2 | . 2 . Feedback Events . | . . . Feedback Blocked . | . . . Robot Schematics Acquired . | . . . Robots Built . | . . . Authchips . | . . . Time . | . . . Total Robot Build Rating . | . . . Part Schematics Acquired . | . . . Parts Built . | . . . Authchips . | . . . Time . | . . . Total Part Build Rating . | . . . Parts Repaired . | . . . Time . | . . . Parts Recycled 1 | . 1 . Recycled Matter . | . . . Retrieved Matter . | . . . Retrieved Components . | . . . Parts Scanalyzed . | . . . Part Schematics Acquired . | . . . Parts Damaged . | . . . Bothacking | -11 -10 -10 ------------ Run | Scr Mat Min Used RIF Installer . | . . . Robots Hacked . | . . . Non-combat . | . . . Combat . | . . . Robot Hacks Applied . | . . . Relay Couplers Released . | . . . Fabnet Peak Effective % . | . . . Robots Rewired . | . . . Allies Hacked . | . . . Hacks Repelled . | . . . Allies | -11 -10 -10 -------- Run | Scr Mat Min Total Allies . | . . . Largest Group . | . . . Highest-Rated Group . | . . . Highest-Rated Ally . | . . . Total Orders . | . . . Ally Attacks . | . . . Total Damage . | . . . Kills . | . . . Allies Corrupted . | . . . Allies Melted . | . . . Intel | -11 -10 -10 ------- Run | Scr Mat Min Robot Analysis Total . | . . . Derelict Logs Recovered 1 | . . 1 Drone Launches . | . . . Drone Recoveries . | . . . Exploration | -11 -10 -10 ------------- Run | Scr Mat Min Turns Passed 880 | 87 574 219 Spaces Moved 401 | 45 274 82 Core 43 | 40 . 3 Treads 358 | 5 274 79 Legs . | . . . Wheels . | . . . Hover . | . . . Flight . | . . . Fastest Speed 50 | 50 160 160 Average Speed 189 | 133 185 237 Slowest Speed 250 | 160 240 250 Overloaded Moves . | . . . Propulsion Burnouts . | . . . Robots Hopped . | . . . Cave-ins Triggered . | . . . Exploration Rate (%) 19 | 4 20 35 Regions Visited 2 Branch Regions 1 Pre-discovered Areas . | . . . Known Exits Taken . | . . . Unknown Exits Taken 2 | 1 1 . Scrap Searched 1 | . . 1 Spaces Dug . | . . . Terrain Destroyed . | . . . Melee . | . . . Projectile . | . . . AOE . | . . . Terrain Rammed . | . . . Walls Destroyed . | . . . Machines Disabled . | . . . Actions | -11 -10 -10 --------- Run | Scr Mat Min Total 474 | 66 312 96 Wait . | . . . Move 399 | 44 273 82 Hop . | . . . Pick Up 14 | 7 5 2 Fast Attach . | . . . Attach 10 | 6 4 . Detach 3 | 1 2 . Swap 2 | . 1 1 Drop 1 | 1 . . Fire 45 | 7 27 11 Melee . | . . . Ram . | . . . Kick . | . . . Crush . | . . . Escape Stasis . | . . . Rewire . | . . . Trap . | . . . Miscellaneous . | . . . Route ------- -11/Scrapyard -10/Materials -10/Mines (discovered 1 exit: Exi) History --------- Turn | Location | Event 21 | -11/Scrapyard | Discovered new exit (range 16) 88 | -11/Scrapyard | Entered Materials 212 | -10/Materials | Discovered new exit (range 15) 333 | -10/Materials | Build established: Mutant 662 | -10/Materials | Entered Mines 809 | -10/Mines | Assembled infested the area 812 | -10/Mines | Identified exit to Exiles 871 | -10/Mines | Core integrity fell below 50% 880 | -10/Mines | Core integrity fell below 20% 881 | -10/Mines | Destroyed by D-53 Grenadier with Mini Grenade Launcher Last Messages --------------- 00852_ as-89958 destroyed. 00856_ as-33617 knocked back. 00859_ as-33617 destroyed. 00859_ R-06 Scavenger collects Aluminum Leg. 00860_ Acquired 1 matter. 00860_ as-15467 destroyed. 00860_ R-06 Scavenger destroyed. 00862_ as-45679 destroyed. 00862_ as-81874 destroyed. 00862_ as-34768 destroyed. 00863_ EM Pulse Gun destroyed. 00867_ D-53 Grenadier knocked back. 00870_ Lgt. Armor Plating destroyed. 00873_ The unstable cave ceiling collapses. 00874_ Lgt. Treads destroyed. 00874_ Lgt. Cannon destroyed. 00875_ The unstable cave ceiling collapses. 00877_ Ion Engine destroyed. 00878_ The unstable cave ceiling collapses. 00881_ U-05 Engineer lays Concrete. Map ----- +----------------------------------------------------+ | ??????????????????? ????????# #?????? | | ?????????????????# ????????## #?????? | | ????????????????## #????????## ## ##?????? | | ????????????????# #????????## ### ##??###?? | | ????????????????# ##???????####?# #??# ### | | ????????????????# #????????????# #?# | | ???????????????## ###########??# !#?# | | ??????????????## ## ##?# %#?# | | ??????????????? ### ### | | ???????????????? ## | | ?????????????????? """ ### | | ???????????????????# """ #?## # | | ????????????????????# """ #??## ## | | ???????????????###### #???## #? | | ???????????????# #?????## #? | | ???????????????# #??????# #? | | ???????? #### # ######## ## | | ?????????####?????## # # | | ??????????????????# ## | | ??????????????????# ##### ########## | | ??????????????????## ###### ##???????# | | ???????????????????## ## ####??????# | | ????????????????????# # ##????# | | ????????????????????# # ####??# ## | | ????????????????????# # # ### #?## | | ????????????????????# @ # % #????# | | ????????????????????### # ## #??????### | | ?????????????????????# dd # ###?????????? | | ?????????????????????## ##???????????? | | ??????????????????????#### # #????????????? | | ?????????????????????????## #????????????? | | ??????????????????????????## r ##????????????? | | ???????????????????????????# %u #?????????????? | | ???????????????????????????###%aa ##?????????????? | | ?????????????????????????????#|aa ??????????????? | | ?????????????????????????????##a #?????????????? | | ??????????????????????????????? ?????????????? | | ??????????????????????????????? ????????????? | | ??????????????????????????????? % ????????????? | | ??????????????????????????????? ???????????? | | ??????????????????????????????? #??????????? | | ???????????????????????????????### ???????????? | | ??????????????????????????????????#??????????????? | | ?????????????????????????????????????????????????? | | ?????????????????????????????????????????????????? | | ?????????>???????????????????????????????????????? | | ?????????????????????????????????????????????????? | | ?????????????????????????????????????????????????? | | ?????????????????????????????????????????????????? | | ?????????????????????????????????????????????????? | +----------------------------------------------------+ Best States ------------- Heat Dissipation 25 Energy Generation 10 Energy Capacity 250 Matter Stores 300 Matter Capacity 300 Sight Range 16 Robot Scan Range 14 Terrain Scan Density 10 Armor Coverage 150 Resistance: KI 20 Resistance: TH 20 Resistance: EX 20 Resistance: EM 20 Resistance: I 20 Resistance: S 20 Resistance: P 20 Evasion (%) 40 Recoil Reduction 1 Offensive Hacking 10 Item Schematics ----------------- None Robot Schematics ------------------ None Fabricated ------------ Nothing Alien Tech Used ----------------- None Achievements -------------- It's Just You Challenges ------------ None Game ------ Seed SapperFortressDeconstructor Manual? 0 Play Time 00:22:46 Cumulative 3.0 hours Start 2022.03.19 @ 17:25:50 End 2022.03.19 @ 17:46:48 Sessions 1 Manual Loads 0 Difficulty Adventurer Special Mode None Game No. 5 Rogue 4 Adventurer 1 Explorer 0 Win Type - Total 0 Types 0/0/0/0/0/0/0/0/0 Lore% 1 Gallery% 7 Achievement% 6 Wizard Run 0 Options --------- ASCII 0 Keyboard 0 Movement Mouse Keybinds 0 Fullscreen 1 Font 24/Terminus Map View 76x50 Tactical HUD 1 Map Filters NONE Filters NONE Steam 1 RUN: d3136f26-556f-4547-a55a-69c78ea8eddf